fUST/lending_fUST_20240329
["ID","MTS","AMOUNT","RATE_DAILY","PERIOD"]
[320873001,1711655448828,-500.0,0.00054794,120]
[320873002,1711655448838,-500.0,0.00054794,120]
[320873003,1711655448848,-500.0,0.00054794,120]
[320873004,1711655448857,-500.0,0.00054794,120]
[320873005,1711655448866,-500.0,0.00054794,120]
[320873006,1711655448875,-500.0,0.00054794,120]
[320873007,1711655448884,-500.0,0.00054794,120]
[320873008,1711655448893,-500.0,0.00054794,120]
[320873009,1711655448903,-500.0,0.00054794,120]
[320873010,1711655448919,-500.0,0.00054794,120]
[320873011,1711655448928,-500.0,0.00054794,120]
[320873012,1711655448938,-500.0,0.00054794,120]
[320873013,1711655448947,-500.0,0.00054794,120]
[320873014,1711655448957,-500.0,0.00054794,120]
[320873015,1711655448967,-500.0,0.00054794,120]
[320873016,1711655448976,-500.0,0.00054794,120]
[320873017,1711655448985,-500.0,0.00054794,60]
[320873018,1711655448994,-500.0,0.00054794,120]
[320873019,1711655449003,-500.0,0.00054794,120]
[320873020,1711655449012,-500.0,0.00054794,120]
[320873021,1711655449022,-500.0,0.00054794,120]
[320873022,1711655449031,-500.0,0.00054794,120]
[320873023,1711655449040,-500.0,0.00054794,120]
[320873024,1711655449052,-500.0,0.00054794,120]
[320873025,1711655449061,-508.48179987,0.00054794,120]
[320873026,1711655449070,-602.15433399,0.00054794,120]
[320873027,1711655449079,-500.65743084,0.00054794,120]
[320873028,1711655449089,-151.0,0.00054794,7]
[320873029,1711655449098,-500.0,0.00054794,120]
[320873030,1711655449108,-500.0,0.00054794,120]
[320873031,1711655449117,-500.0,0.00054794,120]
[320873032,1711655449127,-500.0,0.00054794,120]
[320873033,1711655449136,-500.0,0.00054794,120]
[320873034,1711655449145,-500.0,0.00054794,120]
[320873035,1711655449155,-500.0,0.00054794,120]
[320873036,1711655449164,-500.0,0.00054794,120]
[320873037,1711655449173,-500.0,0.00054794,120]
[320873038,1711655449181,-500.0,0.00054794,120]
[320873039,1711655449190,-500.0,0.00054794,120]
[320873040,1711655449199,-500.0,0.00054794,120]
[320873041,1711655449208,-559.67222723,0.00054794,120]
[320873042,1711655449217,-237.17120191,0.00054794,120]
[320873043,1711655449225,-500.0,0.00054794,120]
[320873044,1711655449234,-2975.52,0.00054794,120]
[320873045,1711655449244,-500.0,0.00054794,120]
[320873046,1711655449253,-500.0,0.00054794,120]
[320873047,1711655449262,-2975.52,0.00054794,120]
[320873048,1711655449271,-500.0,0.00054794,120]
[320873049,1711655449280,-2975.52,0.00054794,120]
[320873050,1711655449290,-2975.52,0.00054794,120]
[320873051,1711655449298,-390.90253458,0.00054794,120]
[320873052,1711655449307,-500.0,0.00054794,120]
[320873053,1711655449316,-2975.52,0.00054794,120]
[320873054,1711655449327,-500.0,0.00054794,120]
[320873055,1711655449335,-500.0,0.00054794,120]
[320873056,1711655449345,-2975.52,0.00054794,120]
[320873057,1711655449354,-500.0,0.00054794,120]
[320873058,1711655449363,-500.0,0.00054794,120]
[320873059,1711655449372,-2975.52,0.00054794,120]
[320873060,1711655449381,-500.0,0.00054794,120]
[320873061,1711655449390,-2975.52,0.00054794,120]
[320873062,1711655449399,-2975.52,0.00054794,120]
[320873063,1711655449408,-500.0,0.00054794,120]
[320873064,1711655449417,-500.0,0.00054794,120]
[320873065,1711655449426,-500.0,0.00054794,120]
[320873066,1711655449435,-500.0,0.00054794,120]
[320873067,1711655449444,-603.18880186,0.00054794,120]
[320873068,1711655449453,-500.0,0.00054794,120]
[320873069,1711655449462,-500.0,0.00054794,120]
[320873070,1711655449471,-500.0,0.00054794,120]
[320873071,1711655449480,-500.0,0.00054794,120]
[320873072,1711655449489,-502.81767342,0.00054794,120]
[320873073,1711655449499,-500.0,0.00054794,120]
[320873074,1711655449508,-500.0,0.00054794,120]
[320873075,1711655449517,-500.0,0.00054794,120]
[320873076,1711655449526,-500.0,0.00054794,120]
[320873077,1711655449536,-500.0,0.00054794,120]
[320873078,1711655449545,-501.88722231,0.00054794,120]
[320873079,1711655449555,-500.0,0.00059998,120]
[320873080,1711655449564,-500.0,0.00059999,120]
[320873081,1711655449574,-500.0,0.00059999,120]
[320873082,1711655449583,-500.0,0.00059999,120]
[320873083,1711655449593,-500.0,0.00059999,120]
[320873084,1711655449603,-500.0,0.00059999,120]
[320873085,1711655449612,-500.0,0.00059999,120]
[320873086,1711655449621,-500.0,0.00059999,120]
[320873087,1711655449630,-500.0,0.00059999,120]
[320873088,1711655449639,-500.0,0.00059999,120]
[320873089,1711655449649,-500.0,0.00059999,120]
[320873090,1711655449658,-500.0,0.00059999,120]
[320873091,1711655449667,-500.0,0.00059999,120]
[320873092,1711655449676,-500.0,0.00059999,120]
[320873093,1711655449685,-500.0,0.00059999,120]
[320873094,1711655449694,-500.0,0.00059999,120]
[320873095,1711655449703,-500.0,0.00059999,120]
[320873096,1711655449712,-355.8608576,0.00059999,120]
[320873097,1711655449721,-500.0,0.00059999,120]
[320873098,1711655449730,-500.0,0.00059999,120]
[320873099,1711655449739,-500.0,0.00059999,120]
[320873100,1711655449749,-500.0,0.00059999,120]
[320873101,1711655449757,-500.0,0.00059999,120]
[320873102,1711655449767,-500.0,0.00059999,120]
[320873103,1711655449776,-500.0,0.00059999,120]
[320873104,1711655449785,-500.0,0.00059999,120]
[320873105,1711655449794,-500.0,0.00059999,120]
[320873106,1711655449803,-500.0,0.00059999,120]
[320873107,1711655449812,-500.0,0.00059999,120]
[320873108,1711655449821,-500.0,0.00059999,120]
[320873109,1711655449830,-560.0,0.00059999,120]
[320873110,1711655449839,-624.65,0.00059999,120]
[320873111,1711655449849,-624.65,0.00059999,120]
[320873112,1711655449859,-151.0,0.00059999,120]
[320873113,1711655449868,-500.0,0.00059999,120]
[320873114,1711655449877,-500.0,0.00059999,120]
[320873115,1711655449886,-500.0,0.00059999,120]
[320873116,1711655449895,-500.0,0.00059999,120]
[320873117,1711655449904,-500.0,0.00059999,120]
[320873118,1711655449970,-565.34,0.00059999,120]
[320873119,1711655449980,-500.0,0.00059999,120]
[320873120,1711655449989,-411.17888943,0.00059999,120]
[320873121,1711655449999,-428.57036651,0.00059999,120]
[320873122,1711655450008,-500.0,0.00059999,120]
[320873123,1711655450017,-322.73151905,0.00059999,120]
[320873132,1711655621838,1499.999999,0.00040431,2]
[320873133,1711655626598,2011.19095084,0.00017,2]
[320873134,1711655628958,7242.45831602,0.0002,2]
[320873135,1711655640497,5228.89081806,0.00015498,2]
[320873136,1711655654389,7492.0573456,0.0001999,2]
[320873137,1711655655841,20687.94477152,0.0002,2]
[320873138,1711655665379,1951.19025637,0.000176,2]
[320873139,1711655670133,271.79462198,0.0001,2]
[320873140,1711655673635,7359.38575588,0.00018,2]
[320873141,1711655673834,2334.94756947,0.00040431,2]
[320873142,1711655675575,7499.999999,0.00040431,7]
[320873143,1711655676430,1668.9970006,0.0002,2]
[320873144,1711655711602,154.98450155,0.0001999,2]
[320873145,1711655726515,154.98450155,0.0002,2]
[320873146,1711655746509,156.55061791,0.0002,2]
[320873147,1711656256806,155.35814826,0.0002,2]
[320873148,1711656261907,261.04045029,0.0002,2]
[320873149,1711656263156,217.55431238,0.0002,2]
[320873150,1711656316164,155.36079134,0.0002,2]
[320873151,1711656336398,154.98450155,0.0002,2]
[320873152,1711656341374,313.37070396,0.0002,2]
[320873153,1711656348373,155.46676764,0.0002,2]
[320873154,1711656357379,204.97083023,0.0002,2]
[320873155,1711656400103,-2630.71991666,0.0003457,4]
[320873156,1711656400124,-0.15542683,0.0003457,4]
[320873239,1711656638558,-4630.52945245,0.00032468,4]
[320873240,1711656638567,-1252.60026268,0.00032469,4]
[320873241,1711656638576,-154.98450155,0.00032469,4]
[320873242,1711656638585,-2115.72508144,0.00032469,4]
[320873243,1711656638594,-734.22472231,0.0003247,2]
[320873244,1711656638604,-258.30573929,0.00033523,4]
[320873245,1711656638613,-4336.45425987,0.00033523,4]
[320873247,1711656638623,-282.85116552,0.00033523,4]
[320873250,1711656638632,-275.34537905,0.00033524,4]
[320873252,1711656638641,-1403.68605156,0.00033524,4]
[320873254,1711656638651,-406.860959,0.00033524,4]
[320873256,1711656638660,-377.94552551,0.00033525,4]
[320873258,1711656638669,-216.30701118,0.00033525,4]
[320873260,1711656638680,-407.14816311,0.00033532,2]
[320873261,1711656638689,-166.55546454,0.00033533,2]
[320873262,1711656638699,-5172.41504345,0.00034224,2]
[320873263,1711656638708,-201.43220804,0.00034781,2]
[320873264,1711656638718,-154.98450155,0.00034881,4]
[320873265,1711656638727,-155.22017563,0.00034882,4]
[320873266,1711656638736,-24900.0,0.00035715,2]
[320873267,1711656638745,-734.22472231,0.0003747,2]
[320873268,1711656638754,-712.284316,0.00039458,2]
[320873269,1711656638763,-201.43220804,0.00039759,2]
[320873270,1711656638773,-250.0,0.00040361,2]
[320873271,1711656638782,-200.0,0.00042387,2]
[320873272,1711656638791,-201.43220804,0.00044736,2]
[320873273,1711656638800,-10440.5467223,0.00047,4]
[320873274,1711656638809,-153.0,0.00048047,2]
[320873275,1711656638818,-153.0,0.00048047,2]
[320873276,1711656638827,-202.0622477,0.00048047,2]
[320873277,1711656638836,-153.0,0.00048047,2]
[320873278,1711656638845,-153.0,0.00048047,2]
[320873279,1711656638854,-202.0622477,0.00048047,2]
[320873280,1711656638863,-153.0,0.00048047,2]
[320873281,1711656638872,-355.1014025,0.00048047,2]
[320873282,1711656638881,-202.0622477,0.00048047,2]
[320873283,1711656638890,-153.0,0.00048047,2]
[320873284,1711656638900,-153.0,0.00048047,2]
[320873285,1711656638908,-202.0622477,0.00048047,2]
[320873286,1711656638917,-153.0,0.00048047,2]
[320873287,1711656638927,-153.0,0.00048047,2]
[320873288,1711656638936,-202.0622477,0.00048047,2]
[320873289,1711656638945,-153.0,0.00048047,2]
[320873290,1711656638953,-153.0,0.00048047,2]
[320873291,1711656638962,-202.0622477,0.00048047,2]
[320873292,1711656638971,-153.0,0.00048047,2]
[320873293,1711656638980,-153.0,0.00048047,2]
[320873294,1711656638989,-202.0622477,0.00048047,2]
[320873295,1711656638998,-153.0,0.00048047,2]
[320873296,1711656639007,-153.0,0.00048047,2]
[320873297,1711656639016,-202.0622477,0.00048047,2]
[320873298,1711656639026,-153.0,0.00048047,2]
[320873299,1711656639035,-153.0,0.00048047,2]
[320873300,1711656639044,-202.0622477,0.00048047,2]
[320873301,1711656639053,-153.0,0.00048047,2]
[320873302,1711656639062,-153.0,0.00048047,2]
[320873303,1711656639072,-202.0622477,0.00048047,2]
[320873304,1711656639081,-153.0,0.00048047,2]
[320873305,1711656639090,-202.0622477,0.00048047,2]
[320873306,1711656639099,-153.0,0.00048047,2]
[320873307,1711656639108,-153.0,0.00048047,2]
[320873308,1711656639117,-153.0,0.00048047,2]
[320873309,1711656639126,-153.0,0.00048047,2]
[320873310,1711656639135,-153.0,0.00048047,2]
[320873311,1711656639144,-153.0,0.00048047,2]
[320873312,1711656639153,-153.0,0.00048047,2]
[320873313,1711656639162,-153.0,0.00048047,2]
[320873314,1711656639171,-153.0,0.00048047,2]
[320873315,1711656639182,-153.0,0.00048047,2]
[320873316,1711656639191,-201.43220804,0.00049714,2]
[320873317,1711656639200,-11002.41164998,0.0005,30]
[320873318,1711656639209,-8488.80713685,0.0005,120]
[320873319,1711656639218,-2936.736046,0.00051998,4]
[320873320,1711656639228,-1000.0,0.00051999,2]
[320873321,1711656639237,-7501.56209779,0.00052,2]
[320873322,1711656639246,-791.6271984,0.00054055,2]
[320873323,1711656639255,-201.43220804,0.00054691,2]
[320873324,1711656639265,-1767.67852608,0.00054694,2]
[320873325,1711656639274,-10060.84147139,0.00054735,15]
[320873326,1711656639284,-300.73214387,0.0005479,4]
[320873327,1711656639293,-220.86854897,0.0005479,4]
[320873328,1711656639302,-1565.85093443,0.0005479,4]
[320873329,1711656639311,-201.68893567,0.0005479,4]
[320873330,1711656639320,-472.40292663,0.0005479,4]
[320873331,1711656639329,-215.94348858,0.0005479,4]
[320873332,1711656639338,-270.55201027,0.0005479,4]
[320873333,1711656639347,-243.04518092,0.0005479,4]
[320873334,1711656639356,-369.72313453,0.0005479,4]
[320873335,1711656639365,-388.98607683,0.0005479,4]
[320873336,1711656639374,-490.0,0.0005479,4]
[320873337,1711656639387,-155.20008682,0.0005479,4]
[320873338,1711656639396,-259.61390099,0.0005479,4]
[320873339,1711656639405,-305.41681417,0.0005479,4]
[320873340,1711656639414,-155.01550155,0.0005479,2]
[320873341,1711656639426,-161.04068202,0.0005479,4]
[320873342,1711656639446,-300.01153387,0.0005479,2]
[320873343,1711656639455,-158.93402427,0.0005479,4]
[320873344,1711656639475,-155.01550155,0.0005479,4]
[320873345,1711656639484,-429.3790958,0.0005479,4]
[320873346,1711656639494,-186.77073307,0.0005479,4]
[320873347,1711656639503,-205.41840338,0.0005479,4]
[320873348,1711656639513,-1417.46301615,0.0005479,4]
[320873349,1711656639521,-400.0,0.0005479,2]
[320873350,1711656639530,-1352.99786362,0.0005479,4]
[320873351,1711656639610,-505.96876293,0.0005479,4]
[320873352,1711656639620,-684.58648199,0.00054791,2]
[320873353,1711656639629,-239.13914389,0.00054791,3]
[320873354,1711656639638,-155.2823058,0.00054792,4]
[320873355,1711656639647,-156.1141243,0.00054792,4]
[320873356,1711656639656,-390.2781978,0.00054792,4]
[320873357,1711656639665,-949.52466804,0.00054792,4]
[320873358,1711656639676,-229.52119273,0.00054792,4]
[320873359,1711656639685,-1063.12826143,0.00054792,4]
[320873360,1711656639694,-678.49467637,0.00054792,2]
[320873361,1711656639707,-500.85148943,0.00054792,4]
[320873362,1711656639716,-211.59342608,0.00054792,4]
[320873363,1711656639725,-242.28129937,0.00054792,4]
[320873364,1711656639735,-558.07257721,0.00054792,4]
[320873365,1711656639745,-157.32,0.00054792,5]
[320873366,1711656639754,-155.94683329,0.00054792,4]
[320873367,1711656639765,-2854.07249522,0.00054792,4]
[320873368,1711656639774,-275.8084111,0.00054792,4]
[320873369,1711656639783,-780.54671569,0.00054792,4]
[320873370,1711656639792,-155.6583905,0.00054792,4]
[320873371,1711656639800,-166.22828959,0.00054792,4]
[320873372,1711656639810,-203.05006541,0.00054792,4]
[320873373,1711656639819,-1951.4363034,0.00054792,4]
[320873374,1711656639829,-155.22586948,0.00054792,4]
[320873375,1711656639839,-155.59771007,0.00054792,4]
[320873376,1711656639848,-25968.23240051,0.00054792,4]
[320873377,1711656639857,-241.41815106,0.00054792,4]
[320873378,1711656639867,-155.30988607,0.00054792,10]
[320873379,1711656639877,-251.92833411,0.00054792,4]
[320873380,1711656639886,-302.92473787,0.00054792,4]
[320873381,1711656639895,-155.08995217,0.00054792,4]
[320873382,1711656639905,-176.71,0.00054793,7]
[320873383,1711656639914,-176.71,0.00054793,7]
[320873384,1711656639923,-176.71,0.00054793,7]
[320873385,1711656639933,-176.71,0.00054793,7]
[320873386,1711656639942,-151.0,0.00054793,7]
[320873387,1711656639952,-200.86675974,0.00054793,120]
[320873388,1711656639961,-522.57892532,0.00054793,120]
[320873389,1711656639971,-8192.05375439,0.00054794,61]
[320873390,1711656639980,-375.85748479,0.00054794,120]
[320873391,1711656639989,-500.0,0.00054794,14]
[320873392,1711656640000,-500.0,0.00054794,120]
[320873393,1711656640009,-500.0,0.00054794,120]
[320873394,1711656640018,-500.0,0.00054794,120]
[320873395,1711656640027,-500.0,0.00054794,120]
[320873396,1711656640037,-305.6973971,0.00054794,120]
[320873397,1711656640046,-383.70234426,0.00054794,120]
[320873398,1711656640055,-500.0,0.00054794,120]
[320873399,1711656640064,-500.0,0.00054794,120]
[320873400,1711656640074,-500.0,0.00054794,120]
[320873401,1711656640083,-500.0,0.00054794,120]
[320873403,1711656640092,-500.0,0.00054794,120]
[320873404,1711656640101,-500.0,0.00054794,120]
[320873406,1711656640110,-500.0,0.00054794,120]
[320873407,1711656640120,-500.0,0.00054794,120]
[320873408,1711656640129,-500.0,0.00054794,120]
[320873409,1711656640139,-500.0,0.00054794,120]
[320873410,1711656640148,-237.71497325,0.00054794,120]
[320873411,1711656640157,-500.0,0.00054794,120]
[320873412,1711656640166,-500.0,0.00054794,120]
[320873413,1711656640176,-500.0,0.00054794,120]
[320873415,1711656640185,-500.0,0.00054794,120]
[320873417,1711656640195,-500.0,0.00054794,120]
[320873420,1711656640204,-500.0,0.00054794,120]
[320873421,1711656640213,-500.0,0.00054794,120]
[320873423,1711656640222,-373.02461886,0.00054794,120]
[320873425,1711656640231,-500.0,0.00054794,120]
[320873426,1711656640240,-500.0,0.00054794,120]
[320873428,1711656640250,-500.0,0.00054794,120]
[320873431,1711656640261,-500.0,0.00054794,120]
[320873434,1711656640276,-500.0,0.00054794,120]
[320873437,1711656640291,-500.0,0.00054794,120]
[320873439,1711656640305,-500.0,0.00054794,120]
[320873442,1711656640317,-500.0,0.00054794,120]
[320873444,1711656640331,-500.0,0.00054794,120]
[320873447,1711656640346,-500.0,0.00054794,120]
[320873448,1711656640362,-500.0,0.00054794,120]
[320873449,1711656640380,-481.93,0.00054794,120]
[320873450,1711656640393,-500.0,0.00054794,120]
[320873451,1711656640404,-500.0,0.00054794,120]
[320873452,1711656640418,-500.0,0.00054794,120]
[320873453,1711656640433,-500.0,0.00054794,120]
[320873454,1711656640446,-501.17206478,0.00054794,120]
[320873455,1711656640460,-500.0,0.00054794,120]
[320873456,1711656640473,-500.0,0.00054794,120]
[320873457,1711656640483,-500.0,0.00054794,120]
[320873458,1711656640497,-500.0,0.00054794,120]
[320873459,1711656640510,-500.0,0.00054794,120]
[320873460,1711656640524,-500.0,0.00054794,120]
[320873461,1711656640535,-500.0,0.00054794,120]
[320873462,1711656640547,-500.0,0.00054794,120]
[320873463,1711656640561,-500.0,0.00054794,120]
[320873464,1711656640574,-500.0,0.00054794,120]
[320873465,1711656640587,-500.0,0.00054794,120]
[320873466,1711656640602,-500.0,0.00054794,120]
[320873467,1711656640616,-500.0,0.00054794,120]
[320873468,1711656640628,-500.0,0.00054794,120]
[320873469,1711656640638,-500.0,0.00054794,120]
[320873470,1711656640648,-500.0,0.00054794,120]
[320873471,1711656640659,-500.0,0.00054794,120]
[320873472,1711656640673,-500.0,0.00054794,120]
[320873473,1711656640684,-500.0,0.00054794,120]
[320873474,1711656640697,-350.49525595,0.00054794,120]
[320873475,1711656640708,-500.0,0.00054794,120]
[320873476,1711656640720,-500.0,0.00054794,120]
[320873477,1711656640732,-500.0,0.00054794,120]
[320873478,1711656640743,-500.0,0.00054794,120]
[320873479,1711656640754,-500.0,0.00054794,120]
[320873480,1711656640766,-500.0,0.00054794,120]
[320873481,1711656640777,-500.0,0.00054794,120]
[320873482,1711656640789,-334.25,0.00054794,120]
[320873483,1711656640801,-464.57927809,0.00054794,120]
[320873485,1711656640813,-500.0,0.00054794,7]
[320873486,1711656640824,-500.0,0.00054794,120]
[320873487,1711656640835,-502.94134699,0.00054794,120]
[320873488,1711656640846,-500.0,0.00054794,120]
[320873489,1711656640857,-500.0,0.00054794,120]
[320873490,1711656640868,-500.0,0.00054794,120]
[320873491,1711656640879,-500.0,0.00054794,120]
[320873492,1711656640890,-500.0,0.00054794,120]
[320873493,1711656640902,-500.0,0.00054794,120]
[320873494,1711656640912,-500.0,0.00054794,120]
[320873495,1711656640924,-500.0,0.00054794,120]
[320873496,1711656640935,-500.0,0.00054794,120]
[320873497,1711656640947,-500.0,0.00054794,120]
[320873498,1711656640957,-500.0,0.00054794,120]
[320873499,1711656640969,-475.75534086,0.00054794,120]
[320873500,1711656640981,-1000.0,0.00054794,120]
[320873501,1711656640993,-500.1559931,0.00054794,120]
[320873502,1711656641004,-500.0,0.00054794,120]
[320873503,1711656641016,-500.0,0.00054794,120]
[320873504,1711656641027,-500.0,0.00054794,120]
[320873505,1711656641038,-500.0,0.00054794,120]
[320873506,1711656641050,-500.0,0.00054794,120]
[320873507,1711656641061,-500.0,0.00054794,120]
[320873508,1711656641073,-500.0,0.00054794,120]
[320873509,1711656641085,-500.0,0.00054794,120]
[320873510,1711656641096,-500.0,0.00054794,120]
[320873511,1711656641205,-502.22249172,0.00054794,120]
[320873512,1711656641223,-500.0,0.00054794,120]
[320873513,1711656641233,-500.0,0.00054794,120]
[320873514,1711656641242,-500.0,0.00054794,120]
[320873515,1711656641252,-500.0,0.00054794,120]
[320873516,1711656641261,-500.57765757,0.00054794,120]
[320873517,1711656641271,-235.69976161,0.00054794,120]
[320873518,1711656641281,-500.0,0.00054794,120]
[320873519,1711656641290,-500.0,0.00054794,120]
[320873520,1711656641299,-500.0,0.00054794,120]
[320873521,1711656641309,-500.0,0.00054794,120]
[320873522,1711656641318,-500.0,0.00054794,120]
[320873523,1711656641327,-500.0,0.00054794,120]
[320873524,1711656641336,-500.0,0.00054794,120]
[320873525,1711656641346,-500.0,0.00054794,120]
[320873526,1711656641355,-500.0,0.00054794,120]
[320873527,1711656641364,-449.25,0.00054794,120]
[320873528,1711656641374,-500.0,0.00054794,120]
[320873529,1711656641388,-500.0,0.00054794,120]
[320873530,1711656641397,-500.0,0.00054794,120]
[320873531,1711656641406,-234.97,0.00054794,120]
[320873532,1711656641417,-598.36819225,0.00054794,120]
[320873533,1711656641429,-500.0,0.00054794,120]
[320873534,1711656641438,-500.0,0.00054794,120]
[320873535,1711656641447,-500.0,0.00054794,120]
[320873536,1711656641456,-500.0,0.00054794,120]
[320873537,1711656641466,-500.0,0.00054794,120]
[320873538,1711656641476,-500.0,0.00054794,120]
[320873539,1711656641485,-500.0,0.00054794,120]
[320873540,1711656641494,-588.50494038,0.00054794,120]
[320873541,1711656641504,-500.0,0.00054794,120]
[320873542,1711656641513,-500.0,0.00054794,120]
[320873543,1711656641524,-500.0,0.00054794,120]
[320873544,1711656641533,-500.0,0.00054794,120]
[320873545,1711656641542,-500.0,0.00054794,120]
[320873546,1711656641553,-500.0,0.00054794,120]
[320873547,1711656641562,-500.0,0.00054794,120]
[320873548,1711656641571,-500.0,0.00054794,120]
[320873549,1711656641580,-108.03837556,0.00054794,120]
[320873550,1711656641713,-308.80621509,0.00054794,120]
[320873551,1711656641722,-500.0,0.00054794,120]
[320873552,1711656641731,-500.0,0.00054794,120]
[320873553,1711656641740,-500.0,0.00054794,120]
[320873554,1711656641749,-589.30050598,0.00054794,120]
[320873555,1711656641761,-500.0,0.00054794,120]
[320873556,1711656641770,-299.55910038,0.00054794,120]
[320873557,1711656641779,-500.0,0.00054794,120]
[320873558,1711656641788,-500.0,0.00054794,120]
[320873559,1711656641797,-500.0,0.00054794,120]
[320873560,1711656641806,-500.0,0.00054794,120]
[320873561,1711656641816,-500.0,0.00054794,120]
[320873562,1711656641825,-500.0,0.00054794,120]
[320873563,1711656641834,-500.0,0.00054794,120]
[320873564,1711656641844,-500.0,0.00054794,120]
[320873565,1711656641853,-298.22102211,0.00054794,120]
[320873566,1711656641862,-228.09737305,0.00054794,120]
[320873567,1711656641871,-500.0,0.00054794,120]
[320873568,1711656641880,-500.0,0.00054794,120]
[320873569,1711656641889,-500.0,0.00054794,120]
[320873570,1711656641898,-499.41723378,0.00054794,120]
[320873571,1711656641907,-500.0,0.00054794,120]
[320873572,1711656641916,-500.0,0.00054794,120]
[320873573,1711656641927,-485.1440434,0.00054794,120]
[320873574,1711656641942,-14.8559566,0.00054794,120]
[320873575,1711656641950,-509.31078726,0.00054794,120]
[320873576,1711656641959,-500.0,0.00054794,120]
[320873577,1711656641969,-500.0,0.00054794,120]
[320873578,1711656641978,-500.0,0.00054794,120]
[320873579,1711656641987,-500.0,0.00054794,120]
[320873580,1711656641996,-500.0,0.00054794,120]
[320873581,1711656642005,-500.0,0.00054794,120]
[320873582,1711656642013,-249.59329983,0.00054794,120]
[320873583,1711656642022,-500.0,0.00054794,120]
[320873584,1711656642031,-500.0,0.00054794,120]
[320873585,1711656642040,-500.0,0.00054794,120]
[320873586,1711656642048,-500.0,0.00054794,120]
[320873587,1711656642057,-500.0,0.00054794,120]
[320873588,1711656642066,-363.19446252,0.00054794,120]
[320873606,1711656646663,-3502.49400301,0.00032468,4]
[320873607,1711656646672,-752.98993587,0.00032468,4]
[320873608,1711656646683,-138.37354496,0.00054794,120]
[320873609,1711656646692,-500.0,0.00054794,120]
[320873610,1711656646700,-500.0,0.00054794,120]
[320873611,1711656646709,-500.0,0.00054794,120]
[320873612,1711656646718,-500.0,0.00054794,120]
[320873614,1711656646727,-500.0,0.00054794,120]
[320873615,1711656646736,-500.0,0.00054794,120]
[320873617,1711656646745,-500.0,0.00054794,120]
[320873619,1711656646754,-328.07,0.00054794,120]
[320873620,1711656646763,-500.0,0.00054794,120]
[320873622,1711656646774,-500.0,0.00054794,120]
[320873624,1711656646782,-500.0,0.00054794,120]
[320873626,1711656646791,-500.0,0.00054794,120]
[320873627,1711656646800,-394.00535115,0.00054794,120]
[320873629,1711656646810,-500.0,0.00054794,120]
[320873631,1711656646819,-500.0,0.00054794,120]
[320873632,1711656646827,-500.0,0.00054794,120]
[320873634,1711656646837,-500.0,0.00054794,120]
[320873635,1711656646847,-500.0,0.00054794,120]
[320873637,1711656646857,-555.38659221,0.00054794,120]
[320873639,1711656646866,-500.0,0.00054794,120]
[320873641,1711656646875,-500.0,0.00054794,120]
[320873642,1711656646884,-500.0,0.00054794,120]
[320873644,1711656646893,-500.0,0.00054794,120]
[320873646,1711656646903,-500.0,0.00054794,120]
[320873648,1711656646913,-500.0,0.00054794,120]
[320873649,1711656646922,-329.1,0.00054794,120]
[320873651,1711656646931,-500.0,0.00054794,120]
[320873653,1711656646940,-357.27061827,0.00054794,120]
[320873655,1711656646949,-500.0,0.00054794,120]